bitfinex/quotes_SOLUSD_20240809
["timestamp","ask_amount","ask_price","bid_price","bid_amount"]
[1723206963449,35.81,155.6,155.51,0.12549]
[1723206963450,20.0,155.59,155.51,0.12549]
[1723206964127,35.81,155.58,155.51,0.12549]
[1723206964740,35.81,155.55,155.51,0.12549]
[1723206964948,20.0,155.54,155.42,35.81]
[1723206965138,35.81,155.52,155.42,35.81]
[1723206965340,35.81,155.54,155.44,35.81]
[1723206965523,22.383,155.57,155.46,35.81]
[1723206965725,22.383,155.57,155.48,35.81]
[1723206966246,20.0,155.56,155.49,45.37647]
[1723206966728,55.81,155.56,155.49,45.37647]
[1723206966928,35.81,155.54,155.41,2.56237911]
[1723206967130,35.81,155.52,155.42,35.81]
[1723206967332,20.0,155.53,155.42,35.81]
[1723206967547,35.81,155.52,155.42,35.81]
[1723206967936,20.0,155.53,155.46,35.81]
[1723206968137,20.0,155.55,155.48,35.81]
[1723206968645,20.0,155.56,155.49,45.37647]
[1723206968935,22.383,155.57,155.49,45.37647]
[1723206970152,35.81,155.58,155.49,45.37647]
[1723206970350,20.0,155.57,155.49,45.37647]
[1723206971347,29.45085065,155.61,155.5,35.81]
[1723206971348,35.81,155.6,155.5,35.81]
[1723206971547,35.81,155.6,155.51,45.37647]
[1723206971850,0.8038863,155.62,155.51,45.37647]
[1723206971851,0.8038863,155.62,155.54,35.81]
[1723206972040,0.8038863,155.62,155.55,45.37647]
[1723206973731,36.6138863,155.62,155.55,45.37647]
[1723206973945,1.6068385,155.61,155.55,45.37647]
[1723206974536,37.41689456,155.6,155.55,0.37647]
[1723206974730,37.41689456,155.6,155.5,35.81]
[1723206974731,20.0,155.59,155.5,35.81]
[1723206975251,0.8038863,155.62,155.52,35.81]
[1723206975650,35.81,155.61,155.52,35.81]
[1723206975832,21.60698812,155.6,155.5,35.81]
[1723206976038,21.60698812,155.6,155.51,0.12549]
[1723206976039,35.81,155.59,155.51,0.12549]
[1723206976465,35.81,155.59,155.48,22.9497]
[1723206976466,35.81,155.57,155.48,58.7597]
[1723206976672,35.81,155.57,155.49,20.0]
[1723206977237,35.81,155.57,155.48,58.7597]
[1723206977439,35.81,155.55,155.46,35.81]
[1723206977669,35.81,155.53,155.44,57.4924]
[1723206978677,35.81,155.53,155.44,21.6824]
[1723206978845,35.81,155.53,155.44,57.4924]
[1723206979044,22.6987,155.57,155.48,35.81]
[1723206979344,57.6082,155.61,155.5,35.81]
[1723206979775,57.6082,155.61,155.51,45.25098]
[1723206979981,35.81,155.59,155.52,0.12549]
[1723206980471,35.81,155.55,155.46,35.81]
[1723206980688,35.81,155.55,155.44,57.4924]
[1723206981179,41.8327,155.53,155.42,35.81]
[1723206981342,1.60787804,155.52,155.42,35.81]
[1723206981543,35.81,155.51,155.4,58.2407]
[1723206981747,21.60787804,155.52,155.4,51.9087]
[1723206981748,35.81,155.49,155.4,51.9087]
[1723206981959,1.60821413,155.48,155.4,16.0987]
[1723206982176,35.81,155.49,155.4,51.9087]
[1723206982383,35.81,155.51,155.42,35.81]
[1723206982540,20.0,155.5,155.42,35.81]
[1723206982962,37.41821773,155.49,155.4,51.9087]
[1723206983160,1.60825142,155.48,155.41,20.0]
[1723206983479,35.81,155.49,155.41,20.0]
[1723206984288,1.60825043,155.52,155.35,28.15372615]
[1723206984289,35.81,155.45,155.35,15.0422]
[1723206984587,20.0,155.48,155.35,15.0422]
[1723206984864,20.0,155.48,155.38,35.81]
[1723206985684,20.0,155.48,155.39,45.37647]
[1723206986984,57.6448,155.53,155.42,35.81]
[1723206987289,57.6448,155.53,155.43,45.37647]
[1723206987494,35.81,155.49,155.43,45.37647]
[1723206987709,35.81,155.49,155.44,0.25098]
[1723206987982,35.81,155.49,155.45,0.12549]
[1723206988160,35.81,155.49,155.43,0.12549]
[1723206988358,35.81,155.49,155.43,0.25098]
[1723206988770,30.1298356,155.53,155.43,0.25098]
[1723206988771,35.81,155.51,155.43,0.25098]
[1723206988968,20.0,155.5,155.43,0.25098]
[1723206989782,35.81,155.51,155.44,0.12549]
[1723206989988,35.81,155.49,155.43,0.25098]
[1723206990877,8.03844294,155.52,155.43,0.25098]
[1723206990878,35.81,155.51,155.43,0.25098]
[1723206991070,21.60827852,155.5,155.43,0.25098]
[1723206991278,35.81,155.47,155.38,35.81]
[1723206991592,35.81,155.47,155.37,6.1174]
[1723206991766,1.60859861,155.46,155.37,6.1174]
[1723206991962,35.81,155.47,155.37,6.1174]
[1723206992162,35.81,155.45,155.35,15.0422]
[1723206992487,35.81,155.45,155.36,35.81]
[1723206992703,35.81,155.43,155.34,35.81]
[1723206992988,1.60904987,155.42,155.33,6.6248]
[1723206993575,35.81,155.41,155.33,6.6248]
[1723206993821,1.60921195,155.4,155.32,35.81]
[1723206993973,35.81,155.41,155.32,35.81]
[1723206994467,35.81,155.43,155.34,35.81]
[1723206994664,20.0,155.42,155.34,35.81]
[1723206994896,35.81,155.46,155.36,35.81]
[1723206995288,35.81,155.48,155.38,35.81]
[1723206995488,281.6542,155.49,155.4,35.81]
[1723206995687,35.81,155.5,155.41,45.37647]
[1723206996888,35.81,155.48,155.41,0.37647]
[1723206997197,1.60851561,155.47,155.41,0.12549]
[1723206997988,35.81,155.46,155.41,0.12549]
[1723206998194,37.41867374,155.46,155.41,0.12549]
[1723206998379,37.41867374,155.46,155.4,45.0]
[1723206998592,35.81,155.44,155.35,15.1297]
[1723206998782,35.81,155.42,155.33,6.3349]
[1723206999103,1.60909371,155.41,155.33,6.3349]
[1723206999314,20.0,155.41,155.33,6.3349]
[1723206999609,21.60915826,155.41,155.33,6.3349]
[1723206999809,20.0,155.41,155.31,51.2918]
[1723207000113,20.0,155.41,155.33,35.81]
[1723207001113,20.0,155.41,155.34,0.12549]
[1723207001327,1.6090123,155.4,155.34,0.37647]
[1723207001507,1.6090123,155.4,155.34,45.37647]
[1723207001686,20.0,155.41,155.34,0.37647]
[1723207002688,37.41910764,155.4,155.34,0.12549]
[1723207003895,35.81,155.38,155.27,52.3283]
[1723207004098,1.6095015,155.37,155.28,20.0]
[1723207004515,42.1795,155.36,155.26,6.6324]
[1723207004799,35.81,155.34,155.23,51.6801]
[1723207005513,35.81,155.34,155.23,15.8701]
[1723207005692,35.81,155.32,155.23,15.8701]
[1723207006021,35.81,155.32,155.21,35.81]
[1723207006229,35.81,155.3,155.21,35.81]
[1723207006413,35.81,155.28,155.19,20.0]
[1723207006732,7.82323673,155.29,155.15,41.9079]
[1723207006733,20.0,155.27,155.15,41.9079]
[1723207006911,20.0,155.27,155.17,35.81]
[1723207007222,35.81,155.25,155.15,41.9079]
[1723207008034,35.81,155.25,155.16,20.0]
[1723207008345,35.81,155.25,155.15,6.0979]
[1723207008959,35.81,155.25,155.16,35.81]
[1723207009650,35.81,155.25,155.15,6.0979]
[1723207009845,35.81,155.25,155.16,20.0]
[1723207011054,35.81,155.25,155.17,45.37647]
[1723207011260,35.81,155.23,155.17,45.37647]
[1723207011469,35.81,155.23,155.17,0.12549]
[1723207012254,35.81,155.21,155.11,6.2483]
[1723207012575,35.81,155.19,155.11,6.2483]
[1723207013274,35.81,155.12,155.06,6.4904]
[1723207013482,35.81,155.1,155.01,6.4904]
[1723207013802,35.81,155.13,155.01,6.4904]
[1723207013952,35.81,155.15,155.04,35.81]
[1723207014155,1.61196407,155.17,155.04,35.81]
[1723207014371,20.0,155.17,155.04,35.81]
[1723207014573,20.0,155.17,155.01,6.4904]
[1723207014875,35.81,155.16,155.04,35.81]
[1723207015065,21.61190487,155.17,155.01,6.4904]
[1723207015066,35.81,155.12,155.01,6.4904]
[1723207015258,35.81,155.12,155.03,35.81]
[1723207015457,20.0,155.15,155.02,21.47054712]
[1723207015656,42.4422,155.2,155.1,35.81]
[1723207015858,35.81,155.22,155.12,35.81]
[1723207016367,6.4668,155.24,155.14,35.81]
[1723207016875,6.4668,155.24,155.15,45.37647]
[1723207017454,6.4668,155.24,155.16,35.81]
[1723207017653,35.81,155.26,155.17,45.37647]
[1723207018077,48.55811434,155.28,155.18,35.81]
[1723207018370,35.81,155.26,155.19,45.37647]
[1723207018583,35.81,155.26,155.19,45.25098]
[1723207018877,35.81,155.24,155.19,45.0]
[1723207019569,35.81,155.24,155.2,0.12549]
[1723207020267,1.61087333,155.23,155.19,45.0]
[1723207020474,1.61087333,155.23,155.12,35.81]
[1723207020475,35.81,155.22,155.12,35.81]
[1723207020683,20.0,155.21,155.12,35.81]
[1723207020974,35.81,155.32,155.2,35.81]
[1723207021184,35.81,155.32,155.22,35.81]
[1723207021774,35.81,155.32,155.23,45.37647]
[1723207022467,20.0,155.31,155.23,45.37647]
[1723207022781,6.2754,155.33,155.24,35.81]
[1723207022984,6.054,155.37,155.28,35.81]
[1723207023278,35.81,155.38,155.3,35.81]
[1723207023477,45.89899418,155.4,155.31,45.37647]
[1723207024389,6.5561,155.42,155.31,45.37647]
[1723207024567,45.89701414,155.46,155.36,35.81]
[1723207024771,45.89701414,155.46,155.37,45.37647]
[1723207024966,35.81,155.44,155.37,45.37647]
[1723207025155,35.81,155.42,155.37,45.0]
[1723207025785,35.81,155.44,155.37,45.0]
[1723207025962,10.08701414,155.46,155.38,36.06098]
[1723207026162,6.025,155.48,155.4,35.81]
[1723207026377,10.08347544,155.49,155.41,45.37647]
[1723207026576,35.81,155.52,155.42,35.81]
[1723207026785,35.81,155.52,155.43,45.37647]
[1723207026976,45.89136459,155.52,155.43,45.37647]
[1723207027382,35.81,155.5,155.43,45.12549]
[1723207027789,10.08136459,155.52,155.44,0.12549]
[1723207029567,10.08136459,155.52,155.43,45.12549]
[1723207030572,45.48373345,155.51,155.35,43.75]
[1723207030784,10.08136459,155.52,155.38,43.75]
[1723207030972,20.0,155.51,155.38,43.75]
[1723207032284,20.0,155.51,155.39,45.37647]
[1723207032803,21.60826575,155.51,155.39,45.37647]
[1723207032992,20.0,155.51,155.39,45.37647]
[1723207033294,10.08136459,155.52,155.39,45.37647]
[1723207033507,6.025,155.54,155.41,43.75]
[1723207033793,45.35795221,155.54,155.42,45.37647]
[1723207033970,6.43,155.52,155.42,45.25098]
[1723207034176,45.35819921,155.54,155.43,0.12549]
[1723207034371,43.75,155.54,155.43,0.12549]
[1723207034795,50.1804,155.51,155.34,20.0]
[1723207035095,20.0,155.5,155.36,63.75]
[1723207035600,20.0,155.5,155.33,6.6141]
[1723207035601,20.0,155.53,155.39,43.75]
[1723207035805,6.4305,155.51,155.36,43.75]
[1723207036098,6.4305,155.51,155.33,6.6141]
[1723207036099,6.4312,155.49,155.33,50.3641]
[1723207036277,20.0,155.48,155.33,50.3641]
[1723207036598,6.0497,155.47,155.33,50.3641]
[1723207036797,6.0497,155.47,155.32,15.5011]
[1723207036798,43.75,155.45,155.32,15.5011]
[1723207036978,43.75,155.42,155.28,6.3732]
[1723207037178,6.4351,155.4,155.28,6.3732]
[1723207037390,71.79497791,155.39,155.23,6.6431]
[1723207037616,50.1867,155.36,155.23,6.6431]
[1723207037805,1.60957791,155.39,155.23,26.6431]
[1723207037806,20.0,155.35,155.23,26.6431]
[1723207038297,20.0,155.35,155.23,6.6431]
[1723207038506,20.0,155.38,155.23,6.6431]
[1723207038682,20.0,155.38,155.23,26.6431]
[1723207038880,20.0,155.38,155.25,63.75]
[1723207039098,21.60940672,155.41,155.25,43.75]
[1723207039490,1.609595,155.4,155.26,20.0]
[1723207039704,20.0,155.41,155.25,43.75]
[1723207040186,20.0,155.41,155.25,63.75]
[1723207040387,21.6094083,155.41,155.25,43.75]
[1723207040791,21.6094083,155.41,155.26,45.12549]
[1723207041104,43.75,155.39,155.27,0.25098]
[1723207041315,20.0,155.38,155.28,0.12549]
[1723207041680,43.75,155.42,155.28,0.12549]
[1723207041906,6.4351,155.4,155.28,0.12549]
[1723207042084,1.60971903,155.39,155.28,0.12549]
[1723207042279,43.75,155.37,155.28,0.12549]
[1723207042475,21.6098271,155.36,155.28,0.12549]
[1723207042895,20.0,155.36,155.28,0.12549]
[1723207043286,20.0,155.36,155.28,0.25098]
[1723207043486,20.0,155.36,155.28,0.12549]
[1723207044093,20.0,155.36,155.22,43.75]
[1723207044301,1.60978612,155.35,155.19,43.75]
[1723207044487,1.60978612,155.35,155.19,63.75]
[1723207044884,1.60978612,155.35,155.19,43.75]
[1723207045085,43.75,155.34,155.17,6.6205]
[1723207045291,43.75,155.31,155.15,16.1898]
[1723207045604,43.75,155.28,155.15,16.1898]
[1723207045908,20.0,155.27,155.15,36.1898]
[1723207046107,43.75,155.34,155.17,20.0]
[1723207046298,43.75,155.34,155.18,43.75]
[1723207046481,43.75,155.34,155.17,20.0]
[1723207046482,6.1719,155.35,155.21,43.75]
[1723207046681,6.1719,155.35,155.22,20.37647]
[1723207046878,6.4375,155.34,155.23,45.0]
[1723207047102,51.79769653,155.34,155.24,0.37647]
[1723207047401,45.36019653,155.34,155.24,0.25098]
[1723207047711,45.36019653,155.34,155.24,0.12549]
[1723207047712,35.9,155.29,155.24,0.12549]
[1723207047915,20.0,155.28,155.24,0.12549]
[1723207048207,20.0,155.3,155.24,36.27647]
[1723207048379,6.1719,155.35,155.24,36.27647]
[1723207048380,42.0719,155.35,155.26,35.9]
[1723207048578,6.1719,155.35,155.27,0.37647]
[1723207048797,51.9364,155.37,155.27,45.37647]
[1723207049400,35.9,155.39,155.28,35.9]
[1723207049608,265.3837,155.4,155.3,35.9]
[1723207049609,6.1837,155.4,155.3,35.9]
[1723207049789,35.9,155.41,155.32,35.9]
[1723207049984,35.9,155.41,155.33,0.37647]
[1723207050191,35.9,155.41,155.33,45.37647]
[1723207050497,35.9,155.39,155.33,45.37647]
[1723207050700,35.9,155.39,155.33,45.12549]
[1723207050892,21.60932193,155.38,155.33,45.12549]
[1723207051091,20.0,155.38,155.33,45.12549]
[1723207051394,21.60933544,155.38,155.33,45.12549]
[1723207051788,35.9,155.35,155.26,35.9]
[1723207052000,35.9,155.33,155.24,35.9]
[1723207052303,35.9,155.31,155.2,35.9]
[1723207052685,20.0,155.3,155.2,35.9]
[1723207052897,37.51035915,155.29,155.2,35.9]
[1723207053087,20.0,155.28,155.18,35.9]
[1723207053287,37.51062823,155.27,155.18,35.9]
[1723207053486,1.61062845,155.26,155.18,35.9]
[1723207053693,1.61062845,155.26,155.14,60.4886]
[1723207053694,21.61062845,155.26,155.14,60.4886]
[1723207054408,8.05170717,155.26,155.14,16.6086]
[1723207054624,8.05170717,155.26,155.08,20.8038863]
[1723207054625,63.88,155.25,155.09,15.9839]
[1723207054791,43.88,155.22,155.09,15.9839]
[1723207054991,1.61132661,155.21,155.09,15.9839]
[1723207055208,1.61137134,155.2,155.09,15.9839]
[1723207055433,20.0,155.21,155.09,15.9839]
[1723207057809,1.61138657,155.2,155.09,15.9839]
[1723207058107,1.61138657,155.2,155.1,0.12549]
[1723207058300,1.61138657,155.2,155.08,0.8038863]
[1723207059115,20.0,155.21,155.08,0.8038863]
[1723207059311,1.61146799,155.2,155.08,0.8038863]
[1723207059612,20.0,155.21,155.08,0.8038863]
[1723207060598,20.0,155.21,155.09,0.12549]
[1723207060792,20.0,155.21,155.09,0.37647]
[1723207061206,1.61133448,155.2,155.09,0.37647]
[1723207061700,1.61161477,155.19,155.09,0.25098]
[1723207062019,26.0087,155.21,155.09,0.25098]
[1723207062399,26.0087,155.21,155.11,43.88]
[1723207062712,26.0087,155.21,155.12,45.25098]
[1723207063106,15.4717,155.22,155.13,0.12549]
[1723207064418,20.0,155.21,155.13,0.12549]
[1723207066023,20.0,155.21,155.08,0.8038863]
[1723207066716,20.0,155.21,155.1,43.88]
[1723207067125,20.0,155.21,155.13,43.88]
[1723207067326,20.0,155.25,155.13,43.88]
[1723207067648,1.11760113,155.23,155.14,45.37647]
[1723207068509,26.4412,155.25,155.14,45.37647]
[1723207068706,22.5213,155.26,155.14,45.37647]
[1723207069220,28.9622,155.26,155.14,45.25098]
[1723207069424,30.57317165,155.26,155.14,45.25098]
[1723207069613,6.4413,155.25,155.14,45.25098]
[1723207069928,6.4426,155.22,155.14,45.0]
[1723207070143,21.61132704,155.21,155.14,45.0]
[1723207070638,1.61131448,155.2,155.1,43.88]
[1723207070810,1.61131448,155.2,155.08,0.8038863]
[1723207071446,20.0,155.21,155.08,0.8038863]
[1723207071647,8.05469945,155.2,155.08,0.8038863]
[1723207071944,20.0,155.19,155.08,0.8038863]
[1723207072144,1.61170631,155.18,155.08,0.8038863]
[1723207072361,20.0,155.19,155.08,0.8038863]
[1723207072650,20.0,155.2,155.08,0.8038863]
[1723207073149,51.93295906,155.24,155.08,0.8038863]
[1723207073315,21.61125906,155.23,155.08,45.8038863]
[1723207073522,28.05335906,155.23,155.09,0.37647]
[1723207073738,35.93,155.22,155.12,35.93]
[1723207073942,20.0,155.21,155.13,45.37647]
[1723207074852,35.93,155.24,155.13,45.37647]
[1723207075037,35.93,155.25,155.14,35.93]
[1723207075235,22.5213,155.26,155.16,35.93]
[1723207075459,58.4513,155.26,155.17,45.37647]
[1723207076327,66.50303648,155.26,155.17,45.37647]
[1723207076535,35.93,155.24,155.14,35.93]
[1723207076835,22.5213,155.26,155.14,35.93]
[1723207077029,35.93,155.25,155.14,35.93]
[1723207077530,35.93,155.25,155.16,35.93]
[1723207077734,20.0,155.24,155.17,45.0]
[1723207077953,6.656,155.26,155.18,36.18098]
[1723207078144,301.79451416,155.29,155.2,35.93]
[1723207078445,295.13,155.29,155.21,45.37647]
[1723207078632,37.04747873,155.29,155.22,0.12549]
[1723207078838,1.11747873,155.29,155.22,36.18098]
[1723207079048,6.4121,155.31,155.23,45.12549]
[1723207079244,6.4121,155.31,155.24,0.25098]
[1723207079450,6.4121,155.31,155.24,0.12549]
[1723207080235,21.61029112,155.3,155.24,0.12549]
[1723207080461,1.61029301,155.29,155.24,0.12549]
[1723207080677,1.61029301,155.29,155.23,45.0]
[1723207080834,35.93,155.28,155.18,35.93]
[1723207081163,35.93,155.28,155.14,15.5108]
[1723207081164,35.93,155.24,155.14,51.4408]
[1723207081558,20.0,155.23,155.14,51.4408]
[1723207082587,35.93,155.29,155.18,35.93]
[1723207082863,42.3421,155.31,155.2,35.93]
[1723207083768,6.4121,155.31,155.22,35.93]
[1723207083980,6.4121,155.31,155.21,45.37647]
[1723207083981,6.4121,155.31,155.24,35.93]
[1723207084270,6.4121,155.31,155.25,45.37647]
[1723207084446,6.4121,155.31,155.25,0.12549]
[1723207084764,16.5232,155.34,155.25,45.37647]
[1723207084964,16.5232,155.34,155.26,35.93]
[1723207085162,301.6448,155.37,155.28,35.93]
[1723207085357,42.4448,155.37,155.29,45.37647]
[1723207085668,6.5148,155.37,155.29,45.37647]
[1723207086361,52.1693,155.39,155.29,45.37647]
[1723207086573,52.1693,155.39,155.3,35.93]
[1723207086755,35.93,155.37,155.31,45.12549]
[1723207086954,52.1693,155.39,155.31,45.0]
[1723207087260,52.1693,155.39,155.32,0.12549]
[1723207087466,42.3636,155.41,155.32,0.12549]
[1723207087668,6.4336,155.41,155.32,0.37647]
[1723207087970,6.4336,155.41,155.26,43.8]
[1723207088169,6.4336,155.41,155.27,45.12549]
[1723207088870,6.4336,155.41,155.29,43.8]
[1723207089083,6.4336,155.41,155.3,45.12549]
[1723207089370,1.11727375,155.42,155.31,0.12549]
[1723207090157,1.11727375,155.42,155.32,66.552]
[1723207090359,6.1606,155.45,155.33,45.12549]
[1723207090669,6.1606,155.45,155.34,0.25098]
[1723207090873,6.1606,155.45,155.35,0.12549]
[1723207091053,1.60890076,155.44,155.35,0.12549]
[1723207091461,6.4341,155.42,155.29,43.8]
[1723207091665,20.0,155.41,155.29,43.8]
[1723207092144,21.60927982,155.41,155.29,43.8]
[1723207092349,43.8,155.4,155.26,43.8]
[1723207092561,20.0,155.39,155.26,43.8]
[1723207092775,21.60951105,155.39,155.26,43.8]
[1723207092979,6.4359,155.38,155.26,43.8]
[1723207093154,20.0,155.37,155.26,43.8]
[1723207093772,20.0,155.38,155.26,43.8]
[1723207094074,20.0,155.38,155.29,43.8]
[1723207094266,20.0,155.38,155.3,45.37647]
[1723207095150,20.0,155.41,155.3,45.37647]
[1723207095349,20.0,155.42,155.3,45.37647]
[1723207095556,16.1508,155.43,155.3,45.37647]
[1723207096373,1.60894352,155.42,155.3,45.37647]
[1723207096552,6.1606,155.45,155.35,43.8]
[1723207096754,6.1606,155.45,155.36,45.37647]
[1723207097692,15.5182,155.48,155.38,43.8]
[1723207097973,17.12661295,155.48,155.39,45.37647]
[1723207098153,6.6154,155.49,155.39,45.37647]
[1723207098355,1.60830836,155.48,155.39,45.37647]
[1723207098972,1.60836352,155.48,155.39,45.37647]
[1723207099163,6.6154,155.49,155.39,45.37647]
[1723207099555,282.37504864,155.52,155.39,45.37647]
[1723207099756,6.6289,155.54,155.41,43.8]
[1723207099976,6.6289,155.54,155.42,45.37647]
[1723207100669,8.23682727,155.54,155.42,45.37647]
[1723207100871,6.4305,155.51,155.42,45.37647]
[1723207101074,1.60830163,155.5,155.42,0.37647]
[1723207101381,21.60830163,155.5,155.42,0.37647]
[1723207102094,20.0,155.5,155.42,0.37647]
[1723207102388,20.0,155.51,155.42,0.37647]
[1723207102563,20.0,155.53,155.42,0.37647]
[1723207102761,6.6289,155.54,155.42,0.37647]
[1723207103402,6.6289,155.54,155.44,43.8]
[1723207103559,6.6289,155.54,155.45,45.37647]
[1723207104054,13.0581,155.54,155.45,45.37647]
[1723207104261,14.66615106,155.54,155.45,45.37647]
[1723207104573,8.23695106,155.54,155.45,45.37647]
[1723207104782,6.6289,155.54,155.45,45.37647]
[1723207105089,20.0,155.53,155.45,45.37647]
[1723207105493,28.03794968,155.53,155.41,43.8]
[1723207105668,28.03794968,155.53,155.36,80.3368]
[1723207105669,6.4306,155.51,155.38,43.8]
[1723207105871,20.0,155.5,155.38,43.8]
[1723207106187,1.60843711,155.49,155.38,43.8]
[1723207106389,20.0,155.53,155.41,43.8]
[1723207106574,6.6289,155.54,155.41,43.8]
[1723207107093,6.6289,155.54,155.42,0.12549]
[1723207107273,6.6289,155.54,155.42,45.37647]
[1723207108175,20.0,155.53,155.42,45.37647]
[1723207108796,20.0,155.53,155.42,51.89147]
[1723207109805,1.60786255,155.52,155.44,35.77]
[1723207110098,1.60804609,155.51,155.45,0.37647]
[1723207110294,20.0,155.53,155.45,45.37647]
[1723207111098,1.11739707,155.52,155.45,45.37647]
[1723207111701,20.0,155.53,155.46,35.77]
[1723207111906,20.0,155.53,155.47,45.25098]
[1723207112069,20.0,155.53,155.48,35.77]
[1723207112410,10.08591672,155.55,155.48,35.77]
[1723207112411,20.0,155.54,155.49,45.12549]
[1723207112771,6.4284,155.56,155.49,45.12549]
[1723207112990,20.0,155.55,155.49,45.12549]
[1723207113376,20.0,155.55,155.46,35.77]
[1723207113586,20.0,155.55,155.47,45.12549]
[1723207113998,6.4292,155.54,155.47,45.12549]
[1723207114192,20.0,155.53,155.47,0.12549]
[1723207114898,20.0,155.55,155.47,0.37647]
[1723207115274,26.429,155.55,155.47,0.25098]
[1723207115479,26.429,155.55,155.47,0.12549]
[1723207115673,26.429,155.55,155.47,45.12549]
[1723207115886,20.0,155.55,155.47,45.12549]
[1723207116078,26.4288,155.55,155.47,45.12549]
[1723207116283,20.0,155.55,155.47,45.12549]
[1723207116493,20.0,155.55,155.48,0.12549]
[1723207117391,20.0,155.55,155.48,35.89549]
[1723207117597,20.0,155.55,155.49,45.12549]
[1723207118182,20.0,155.55,155.46,35.89549]
[1723207118390,20.0,155.55,155.44,35.77]
[1723207118391,37.37793463,155.54,155.44,35.77]
[1723207118603,20.0,155.53,155.44,35.77]
[1723207118985,26.43,155.53,155.44,35.77]
[1723207119186,6.4307,155.51,155.42,42.285]
[1723207119389,43.80921561,155.5,155.41,15.5266]
[1723207119592,20.0,155.49,155.41,15.5266]
[1723207119989,1.60842004,155.48,155.41,15.5266]
[1723207120194,20.0,155.49,155.4,35.77]
[1723207120507,1.60849755,155.48,155.4,35.77]
[1723207120708,20.0,155.49,155.37,23.099]
[1723207120709,20.0,155.49,155.44,35.77]
[1723207120923,15.8891,155.51,155.44,35.77]
[1723207120924,20.0,155.5,155.44,35.77]
[1723207121416,1.60805441,155.49,155.45,45.12549]
[1723207121586,20.0,155.51,155.45,45.12549]
[1723207123011,20.0,155.52,155.45,45.12549]
[1723207123809,20.0,155.52,155.46,35.77]
[1723207124001,20.0,155.52,155.47,45.12549]
[1723207124205,26.4293,155.54,155.47,45.12549]
[1723207124516,57.37800972,155.54,155.47,45.12549]
[1723207125391,55.77,155.54,155.47,45.0]
[1723207125998,6.4297,155.53,155.47,45.0]
[1723207126200,20.0,155.52,155.47,45.0]
[1723207126718,20.0,155.53,155.47,45.0]
[1723207127305,6.43,155.52,155.47,45.0]
[1723207127621,6.43,155.52,155.37,31.25272615]
[1723207127622,20.0,155.51,155.42,35.77]
[1723207127806,1.60833742,155.5,155.43,45.12549]
[1723207128002,26.4305,155.51,155.43,45.12549]
[1723207128903,20.0,155.51,155.43,45.12549]
[1723207129196,35.77,155.55,155.46,35.77]
[1723207129396,35.77,155.55,155.47,45.12549]
[1723207129614,42.1989,155.55,155.47,45.12549]
[1723207130931,26.4292,155.54,155.47,45.12549]
[1723207131294,6.4296,155.53,155.47,45.12549]
[1723207131508,20.0,155.54,155.47,45.12549]